bitfinex/quotes_ETHUSD_20260129
["timestamp","ask_amount","ask_price","bid_price","bid_amount"]
[1769714453505,0.89989561,2778.1,2776.9,0.002]
[1769714453712,1.42517864,2778.1,2776.9,0.21699034]
[1769714454214,1.42517864,2778.1,2777.0,0.90025207]
[1769714454512,5.20917864,2778.1,2776.9,0.21699034]
[1769714454680,13.73169764,2778.0,2776.9,0.002]
[1769714455086,13.73169764,2777.7,2776.7,1.24756924]
[1769714455282,13.73239988,2777.4,2776.1,0.002]
[1769714455513,13.73239988,2777.4,2776.2,0.90049722]
[1769714455902,13.73239988,2777.4,2776.3,0.9004786]
[1769714456299,0.90015482,2777.3,2776.1,0.002]
[1769714456499,0.52528303,2777.2,2776.1,0.002]
[1769714458416,0.90021965,2777.1,2776.1,0.002]
[1769714458918,0.90021965,2777.1,2775.9,0.90260881]
[1769714459307,0.90021965,2777.1,2775.9,13.75365583]
[1769714459915,0.90015482,2777.3,2775.9,13.75365583]
[1769714460123,0.90015482,2777.3,2776.0,14.66206736]
[1769714460819,0.754,2777.6,2776.1,0.90054392]
[1769714461318,14.48639988,2777.6,2776.1,0.90054392]
[1769714462891,0.90009,2777.5,2776.1,0.90054392]
[1769714463218,0.90009,2777.5,2776.2,1.9164787]
[1769714463617,0.90009,2777.5,2776.2,14.76752572]
[1769714463825,0.89992988,2778.0,2776.4,12.85104702]
[1769714464117,0.89992988,2778.0,2776.2,1.9164787]
[1769714464118,3.5993241,2778.3,2776.6,12.85104702]
[1769714464416,0.89970129,2778.7,2777.0,12.85104702]
[1769714464617,14.63210117,2778.7,2777.0,12.85104702]
[1769714464789,13.73239988,2778.6,2777.1,14.13615172]
[1769714464989,0.89976606,2778.5,2777.2,13.75123425]
[1769714465724,14.63216594,2778.5,2777.2,0.90018723]
[1769714466400,0.001,2777.8,2777.2,0.90018723]
[1769714466601,0.001,2777.8,2777.3,0.45009362]
[1769714467021,0.001,2777.8,2777.0,0.90023444]
[1769714467412,0.001,2777.8,2777.2,0.90018643]
[1769714467997,0.001,2777.8,2777.3,0.90014439]
[1769714468422,0.001,2777.8,2777.2,0.9001805]
[1769714469024,0.001,2777.8,2776.8,0.90031691]
[1769714469328,0.001,2777.8,2776.9,1.81067461]
[1769714469621,13.73339988,2777.8,2776.7,0.90033041]
[1769714470526,13.73339988,2777.8,2776.6,0.90035241]
[1769714471229,0.9000252,2777.7,2776.4,0.90044662]
[1769714474602,0.9000252,2777.7,2776.4,13.75149364]
[1769714474802,0.9000252,2777.7,2776.5,1.81092801]
[1769714475026,0.9000252,2777.7,2776.3,0.002]
[1769714475027,13.73239988,2777.6,2776.3,0.002]
[1769714475231,13.73239988,2777.6,2776.3,0.90247551]
[1769714475433,13.73239988,2777.4,2776.3,0.002]
[1769714476432,0.90009,2777.5,2776.3,0.002]
[1769714476731,0.90009,2777.5,2776.3,12.85304702]
[1769714477342,0.001,2777.8,2776.5,12.85104702]
[1769714477544,0.001,2777.8,2776.5,13.60504702]
[1769714478711,13.73339988,2777.8,2776.5,0.754]
[1769714479339,0.9000252,2777.7,2776.6,0.90038176]
[1769714479545,0.90100318,2777.8,2776.6,13.75142878]
[1769714481742,0.001,2777.8,2776.6,13.75142878]
[1769714484935,13.73339988,2777.8,2776.6,0.90034952]
[1769714485134,13.73239988,2777.7,2776.6,0.90034952]
[1769714485333,13.73239988,2777.7,2776.5,0.90039926]
[1769714485535,13.73239988,2777.7,2776.4,0.90042385]
[1769714485977,13.68968593,2777.7,2776.6,0.90036213]
[1769714486160,0.001,2777.8,2776.6,0.90036213]
[1769714486363,0.001,2777.8,2776.3,12.68073635]
[1769714487683,13.69068593,2777.8,2776.3,12.68073635]
[1769714488937,0.9000252,2777.7,2776.4,0.90044662]
[1769714491763,0.001,2777.6,2776.4,0.90044662]
[1769714491947,13.69068593,2777.6,2776.3,0.90246565]
[1769714492152,13.69068593,2777.6,2776.3,0.90247691]
[1769714492364,13.68968593,2777.4,2776.3,0.002]
[1769714492574,13.68968593,2777.1,2775.9,0.002]
[1769714492880,13.68968593,2776.9,2775.5,0.002]
[1769714493048,13.68968593,2776.8,2775.5,0.002]
[1769714493250,13.23688028,2776.6,2775.5,0.002]
[1769714493448,0.80881325,2776.5,2775.5,0.002]
[1769714493762,14.04569353,2776.5,2775.5,0.002]
[1769714494150,14.79969353,2776.5,2775.5,0.002]
[1769714494814,13.23688028,2776.4,2775.5,0.002]
[1769714495491,0.90047905,2776.3,2775.5,0.002]
[1769714495690,13.7156228,2776.2,2775.5,0.002]
[1769714496765,13.7156228,2776.2,2775.3,0.002]
[1769714497154,0.47874252,2776.2,2775.3,0.002]
[1769714497803,1.3792722,2776.2,2775.3,0.002]
[1769714498010,0.90034933,2776.7,2775.3,12.45566479]
[1769714499812,1.65431691,2776.9,2775.4,0.90077106]
[1769714500383,13.23688028,2776.7,2775.4,0.90077106]
[1769714502519,0.90038176,2776.6,2775.3,3.60508424]
[1769714502721,0.90038176,2776.6,2775.4,1.69595525]
[1769714503023,14.13726204,2776.6,2775.3,0.90280351]
[1769714503747,14.13826204,2776.6,2775.3,0.90280351]
[1769714509146,0.90138176,2776.6,2775.3,13.3564683]
[1769714510155,0.001,2776.6,2775.3,13.3564683]
[1769714510455,0.1024,2777.5,2775.5,12.45366479]
[1769714510456,0.90012241,2777.4,2775.5,12.45366479]
[1769714510632,0.90012241,2777.4,2775.7,12.45366479]
[1769714510835,0.90012241,2777.4,2775.9,12.45366479]
[1769714511220,13.23688028,2777.3,2775.9,12.45366479]
[1769714511914,13.23688028,2777.3,2775.8,0.754]
[1769714512119,13.33928028,2777.3,2775.8,0.754]
[1769714512314,13.33928028,2777.3,2775.6,0.90070615]
[1769714512515,13.23688028,2777.1,2775.4,0.90077106]
[1769714512953,13.23688028,2776.9,2775.3,0.002]
[1769714513124,13.23688028,2776.7,2775.3,0.90279781]
[1769714513319,13.23688028,2776.7,2775.3,0.90279867]
[1769714514750,13.23688028,2776.5,2775.3,0.002]
[1769714515462,0.90038176,2776.6,2775.3,0.002]
[1769714516868,13.34986473,2776.6,2775.3,0.002]
[1769714519131,0.90038176,2776.6,2775.3,11.46377649]
[1769714520960,3.60117816,2776.9,2775.5,11.46177649]
[1769714522339,16.05066113,2776.9,2775.5,11.46177649]
[1769714522553,16.05066113,2776.9,2775.6,1.23625476]
[1769714524162,16.05066113,2776.9,2775.7,0.9006737]
[1769714524473,16.05066113,2776.9,2775.6,2.13694693]
[1769714525361,12.44948297,2776.8,2775.6,0.90069217]
[1769714526487,0.90034933,2776.7,2775.6,0.90069217]
[1769714526695,0.90034933,2776.7,2775.5,12.36249768]
[1769714527271,13.35073504,2777.1,2775.8,11.46377649]
[1769714527472,3.60109784,2777.0,2775.9,12.60815414]
[1769714527692,3.60109784,2777.0,2775.9,1.14637765]
[1769714527883,3.60109784,2777.0,2775.8,0.002]
[1769714529109,13.35073504,2777.1,2775.8,0.002]
[1769714529818,13.35073504,2777.1,2775.8,11.46377649]
[1769714531311,13.35073504,2777.1,2775.9,0.90060881]
[1769714532613,13.35073504,2777.1,2775.3,0.002]
[1769714532614,12.44948297,2776.5,2775.3,0.002]
[1769714532913,12.55188297,2776.9,2775.6,0.90067633]
[1769714533114,0.90125207,2777.1,2775.8,0.90061247]
[1769714533301,12.89968395,2777.0,2775.7,0.90064932]
[1769714534208,12.89968395,2777.0,2775.3,11.46377649]
[1769714534525,12.44948297,2776.8,2775.3,0.002]
[1769714535333,12.44948297,2776.6,2775.3,0.002]
[1769714535540,13.20348297,2776.6,2775.3,0.002]
[1769714535719,12.44948297,2776.4,2775.3,0.002]
[1769714536029,3.784,2776.3,2775.3,0.002]
[1769714536226,12.44948297,2776.4,2775.3,0.002]
[1769714536830,12.44948297,2776.2,2775.3,0.002]
[1769714536992,12.44948297,2776.0,2775.3,0.002]
[1769714537415,13.35009178,2775.9,2774.9,0.002]
[1769714538086,12.44948297,2775.7,2774.9,0.002]
[1769714538500,12.44948297,2775.7,2774.4,0.90309047]
[1769714538701,0.83735479,2775.6,2774.4,0.90309047]
[1769714539114,0.83735479,2775.6,2774.4,0.002]
[1769714539417,0.9007386,2775.5,2774.4,0.002]
[1769714539627,0.9007386,2775.5,2775.1,0.002]
[1769714539792,0.9007386,2775.5,2774.4,0.002]
[1769714539993,0.45020098,2775.4,2774.4,0.002]
[1769714540225,0.45020098,2775.4,2774.9,0.002]
[1769714540587,12.89968395,2775.4,2774.4,0.002]
[1769714540791,0.45020098,2775.4,2774.4,0.002]
[1769714541231,0.45020098,2775.4,2774.4,11.46377649]
[1769714541528,0.90080351,2775.3,2774.5,2.04742075]
[1769714542293,0.90080351,2775.3,2774.4,0.002]
[1769714543136,0.45020098,2775.4,2774.5,0.90103518]
[1769714543298,12.44948297,2776.1,2774.5,12.36281167]
[1769714543299,0.90057636,2776.0,2774.5,12.36281167]
[1769714543492,3.60188326,2776.4,2774.1,3.60625301]
[1769714543493,0.90051149,2776.2,2774.9,11.46177649]
[1769714543720,0.90051149,2776.2,2774.7,3.60386334]
[1769714543721,13.34999446,2776.2,2774.7,0.90098843]
[1769714544110,13.34999446,2776.2,2774.7,12.36276492]
[1769714544508,13.34999446,2776.2,2774.6,1.59670647]
[1769714544721,13.34999446,2776.2,2774.6,0.90101082]
[1769714545396,13.34999446,2776.2,2774.7,0.90099805]
[1769714545598,13.34999446,2776.2,2774.5,0.90106325]
[1769714546302,13.34999446,2776.2,2774.2,0.90113856]
[1769714546303,11.62079116,2776.0,2774.2,0.90113856]
[1769714546819,11.62079116,2776.0,2774.3,0.90112813]
[1769714546997,11.62079116,2776.0,2774.2,3.60463341]
[1769714547192,6.5224,2776.1,2774.2,0.90113939]
[1769714547193,11.62079116,2775.6,2774.2,0.90113939]
[1769714547397,12.37479116,2775.5,2774.3,0.90112773]
[1769714547630,0.90077106,2775.4,2774.2,3.60462223]
[1769714547928,0.90077106,2775.4,2774.3,0.52617829]
[1769714549120,0.90077106,2775.4,2774.1,1.65717789]
[1769714549322,11.62079116,2775.3,2774.1,1.65717789]
[1769714549600,0.90083597,2775.2,2774.1,1.65718402]
[1769714550226,12.52162713,2775.2,2774.1,1.65719166]
[1769714550804,12.52162713,2775.2,2774.1,1.65719161]
[1769714551004,12.52162713,2775.2,2774.1,0.756]
[1769714551534,12.52162713,2775.2,2774.1,1.65717913]
[1769714552231,12.52162713,2775.2,2774.1,0.756]
[1769714552534,12.52162713,2775.2,2774.1,0.002]
[1769714552739,11.62079116,2775.0,2773.9,0.002]
[1769714553119,11.62079116,2775.0,2773.6,0.90134891]
[1769714553847,11.08635811,2774.8,2773.5,3.605548]
[1769714555014,11.08635811,2774.8,2773.5,0.90138813]
[1769714555547,11.08635811,2774.8,2773.5,11.60516184]
[1769714555750,0.90093336,2774.9,2773.5,11.60516184]
[1769714556247,3.60373346,2775.1,2773.5,11.60516184]
[1769714558627,11.08635811,2775.0,2773.5,11.60516184]
[1769714560366,11.08635811,2775.0,2773.5,0.90138567]
[1769714560562,11.08635811,2775.0,2773.3,3.60572245]
[1769714560931,11.18875811,2775.0,2773.3,3.60572245]
[1769714561161,11.18875811,2775.0,2773.4,10.70377371]
[1769714561978,11.18875811,2775.0,2773.2,0.90147411]
[1769714562179,11.18875811,2775.0,2773.1,3.60795362]
[1769714562180,11.18875811,2775.0,2773.1,0.002]
[1769714562478,11.98742136,2774.5,2773.1,10.70577371]
[1769714563540,11.98742136,2774.5,2773.1,0.002]
[1769714565067,11.98742136,2774.5,2773.3,0.002]
[1769714565240,11.98742136,2774.5,2773.1,0.002]
[1769714565441,11.08635811,2774.3,2773.1,0.002]
[1769714565769,11.08635811,2774.1,2773.1,0.002]
[1769714566946,11.08635811,2773.9,2773.1,0.002]
[1769714567138,11.08635811,2773.9,2772.7,0.002]
[1769714567340,11.08635811,2773.7,2772.4,11.60549701]
[1769714567587,11.08635811,2773.7,2772.4,12.22502995]
[1769714567796,0.45061283,2773.9,2772.5,11.60548665]
[1769714568888,0.90129064,2773.8,2772.5,11.60548665]
[1769714571461,11.08635811,2773.7,2772.1,10.70377371]
[1769714571660,11.08635811,2773.7,2772.0,0.90185118]
[1769714571661,11.58206472,2773.7,2772.0,0.90185722]
[1769714571882,11.08635811,2773.5,2772.0,0.90185722]
[1769714572158,11.08635811,2773.3,2772.1,1.35297576]
[1769714572387,11.84135811,2773.3,2772.1,1.35297576]
[1769714572794,11.84135811,2773.3,2772.2,0.90180807]
[1769714572999,11.84135811,2773.3,2772.1,1.35295881]
[1769714573188,0.90148564,2773.2,2772.2,11.60558273]
[1769714573396,0.90148564,2773.2,2772.3,1.56639889]
[1769714575113,0.90148564,2773.2,2772.1,1.35296155]
[1769714575918,0.90148564,2773.2,2771.9,10.70577371]
[1769714575919,11.40874981,2773.2,2771.9,0.002]
[1769714576274,0.90148564,2773.2,2772.1,11.86884477]
[1769714577323,3.60594259,2773.4,2772.1,11.86884477]
[1769714577489,0.72118852,2773.3,2772.2,1.54763405]
[1769714577892,0.72118852,2773.3,2772.3,0.002]
[1769714579086,0.1,2772.4,2772.3,0.002]
[1769714579280,0.08749892,2772.4,2772.3,0.002]
[1769714580302,12.0687265,2774.3,2772.3,0.002]
[1769714580303,0.001,2773.5,2772.3,10.96900298]
[1769714580551,10.50726417,2774.1,2772.4,1.0969003]
[1769714580853,10.50726417,2773.4,2772.3,0.002]
[1769714581049,10.50726417,2773.4,2772.1,11.8688439]
[1769714581200,0.90142063,2773.4,2772.1,11.8688439]
[1769714581398,0.90142063,2773.4,2772.2,12.15408737]
[1769714581399,0.52621032,2773.3,2772.2,12.15408737]
[1769714582297,0.52621032,2773.3,2772.2,10.96700298]
[1769714582829,0.90142063,2773.4,2772.2,10.96700298]
[1769714583349,14.11294672,2773.6,2772.3,0.9017783]
[1769714583846,14.11294672,2773.6,2772.2,11.86878901]
[1769714584149,10.50726417,2773.5,2772.2,0.90178603]
[1769714584330,10.50726417,2773.5,2772.2,0.90180861]
[1769714584520,10.50726417,2773.3,2772.0,0.90385807]
[1769714585416,11.40874981,2773.2,2772.0,0.002]
[1769714585939,10.50726417,2773.0,2772.0,0.002]
[1769714586840,10.50726417,2773.0,2771.6,0.002]
[1769714587236,10.50726417,2773.0,2771.6,0.90400239]
[1769714587537,10.50726417,2772.8,2771.6,0.002]
[1769714587833,9.62726417,2772.8,2770.9,0.002]
[1769714588034,0.1024,2771.9,2770.9,0.002]
[1769714588337,10.50726417,2771.9,2770.3,3.60966266]
[1769714588527,10.50726417,2771.9,2770.2,3.60980751]
[1769714588728,10.50726417,2771.9,2770.4,0.90239667]
[1769714589248,10.50726417,2771.9,2770.2,3.60980751]
[1769714589422,10.50726417,2771.7,2770.0,0.90252707]
[1769714589607,10.50726417,2771.7,2770.0,2.3602475]
[1769714590330,10.50726417,2771.7,2770.1,10.96700298]
[1769714591305,10.50726417,2771.7,2770.0,2.3602475]
[1769714591538,10.50726417,2771.5,2770.0,2.3602475]
[1769714591725,10.50726417,2771.3,2769.8,0.90258005]
[1769714592114,10.50726417,2771.3,2770.0,0.90252521]
[1769714592436,10.50726417,2771.3,2770.0,0.90252593]
[1769714592762,0.90200606,2771.6,2770.0,11.86952615]
[1769714592909,11.40897742,2772.5,2770.2,10.96700298]
[1769714593517,0.90261569,2772.8,2770.8,10.96700298]
[1769714593840,0.90261569,2772.8,2770.7,0.90229905]
[1769714593841,10.50726417,2772.7,2771.0,10.96700298]
[1769714594040,10.50726417,2772.7,2771.1,1.0967003]
[1769714594245,10.50726417,2772.7,2770.6,4.36419623]
[1769714594246,10.50726417,2772.5,2770.6,0.90231621]
[1769714594444,7.67367159,2772.6,2770.6,0.90231621]
[1769714594445,0.1024,2771.9,2770.6,0.90232929]
[1769714594655,0.1024,2771.9,2769.6,10.96700298]
[1769714594656,10.50726417,2771.8,2769.6,10.96700298]
[1769714594855,10.50726417,2771.5,2769.6,10.96700298]
[1769714595140,10.50726417,2771.5,2769.2,0.002]
[1769714595141,10.50726417,2771.5,2770.2,0.90244288]
[1769714595340,10.50726417,2772.3,2770.6,0.90232872]
[1769714595656,0.90184336,2772.1,2770.3,11.86943231]
[1769714595811,0.1024,2772.0,2770.3,11.86943231]
[1769714596011,10.60966417,2772.0,2770.3,11.86943231]
[1769714596213,0.1024,2772.0,2770.4,12.51492352]
[1769714596425,0.90184336,2772.1,2770.4,12.51492352]
[1769714597649,3.60737347,2772.2,2770.5,0.90236419]
[1769714597813,3.60737347,2772.3,2770.6,10.96700298]
[1769714598020,3.60737347,2772.3,2770.7,12.1539397]
[1769714598747,1.65764647,2772.8,2770.7,12.1539397]
[1769714598965,0.90264647,2772.8,2770.7,12.1539397]
[1769714599731,0.001,2772.8,2770.9,10.96700298]
[1769714599930,0.001,2772.8,2771.1,10.96700298]
[1769714599931,0.3607338,2772.7,2771.1,10.96700298]
[1769714600264,0.3607338,2772.7,2771.2,0.755]
[1769714600423,0.3607338,2772.7,2771.2,11.72200298]
[1769714600738,0.001,2772.8,2771.2,11.72200298]
[1769714600916,0.001,2772.8,2771.2,10.96700298]
[1769714601116,10.61066417,2772.8,2771.0,1.94192695]
[1769714601348,10.61066417,2772.8,2771.0,12.90892993]
[1769714601349,0.1034,2772.8,2771.0,12.90892993]
[1769714601519,0.3709738,2772.7,2771.2,10.96700298]
[1769714602015,0.90168073,2772.6,2771.4,10.96700298]
[1769714603372,0.90168073,2772.6,2771.1,4.8993168]
[1769714603373,11.4089449,2772.6,2771.0,0.90217706]
[1769714603541,11.4089449,2772.6,2771.2,0.90213073]
[1769714603938,11.4089449,2772.6,2770.9,0.90223393]
[1769714604164,0.91658197,2772.5,2771.0,1.54801726]
[1769714604657,10.50726417,2772.4,2771.0,1.54801726]
[1769714604862,10.50726417,2772.4,2770.8,0.90424985]
[1769714605039,10.50726417,2772.4,2770.8,11.87125283]
[1769714605373,0.91658197,2772.5,2770.8,11.87125283]
[1769714605556,0.90168073,2772.6,2770.8,11.87125283]
[1769714606440,11.53385161,2772.6,2770.8,11.87125283]
[1769714607880,10.63217088,2772.4,2770.8,0.002]
[1769714608043,10.63217088,2772.2,2770.8,0.002]
[1769714608237,10.63217088,2772.2,2770.5,0.90436419]
[1769714608487,10.63217088,2772.2,2770.6,0.60618394]
[1769714608642,10.63217088,2772.2,2770.6,11.48623413]
[1769714609206,10.63217088,2772.2,2770.6,0.60618394]
[1769714609207,10.63217088,2772.1,2770.6,0.60618394]
[1769714609492,10.63217088,2772.1,2770.5,0.002]
[1769714609695,10.63217088,2771.0,2769.5,10.88005019]
[1769714609897,0.18777895,2772.1,2769.8,10.88005019]
[1769714609898,10.63217088,2771.4,2769.8,10.88005019]
[1769714610096,0.1024,2771.4,2770.1,11.78252927]
[1769714610326,0.1024,2771.4,2770.1,11.78253557]
[1769714610477,0.9020386,2771.5,2770.1,11.78253557]
[1769714611307,0.9020386,2771.5,2770.1,12.53753557]
[1769714611520,1.71387334,2771.5,2770.2,12.49480154]
[1769714612415,1.71387334,2771.5,2770.3,0.90242933]
[1769714612637,0.90199291,2771.7,2770.4,10.88005019]
[1769714612872,0.9018759,2772.0,2770.4,10.88005019]
[1769714614542,3.60700308,2772.4,2770.4,10.88005019]
[1769714614543,10.09982034,2772.4,2770.6,10.03830309]
[1769714614724,0.001,2772.5,2770.7,1.09406673]
[1769714614725,11.10990237,2772.3,2770.7,1.09406673]
[1769714615740,1.01008203,2772.3,2770.8,10.03830309]
[1769714615923,0.1034,2772.5,2771.0,10.03830309]
[1769714616429,10.20222034,2772.3,2770.2,12.55549314]
[1769714616638,10.20222034,2772.3,2769.8,10.03830309]
[1769714616849,0.90174577,2772.4,2769.4,0.002]
[1769714616850,10.09982034,2771.3,2769.4,0.002]
[1769714617152,10.09982034,2770.7,2769.4,0.002]
[1769714617316,10.09982034,2770.5,2769.4,0.002]
[1769714618351,10.09982034,2770.3,2769.0,0.002]
[1769714618558,11.00228225,2770.2,2769.0,0.002]
[1769714621429,11.00228225,2770.2,2768.3,0.90308131]
[1769714621652,10.09982034,2770.0,2768.3,0.90308131]
[1769714622469,10.09982034,2770.0,2767.8,0.757]
[1769714622470,10.09982034,2769.6,2767.8,0.002]
[1769714622656,10.20222034,2769.3,2767.8,0.002]
[1769714622820,11.75760814,2769.2,2767.8,0.002]
[1769714623021,10.09982034,2769.0,2766.2,1.10055482]
[1769714623223,13.45735957,2769.1,2766.7,10.03830309]
[1769714623428,10.20222034,2768.8,2766.9,10.03830309]
[1769714623638,10.20222034,2768.8,2767.3,0.90340525]
[1769714623843,10.20222034,2768.8,2767.3,0.90340374]
[1769714624123,10.20222034,2768.8,2766.9,10.03830309]
[1769714624124,10.09982034,2768.8,2767.0,10.03830309]
[1769714624329,0.9027878,2769.2,2767.7,0.9032653]
[1769714624330,1.6587878,2769.2,2767.7,0.9032653]
[1769714624549,0.9027878,2769.2,2767.7,0.9032653]
[1769714624754,0.9027878,2769.2,2767.6,3.61310835]
[1769714625765,11.75860814,2769.2,2767.6,0.90330972]
[1769714626058,10.20222034,2768.7,2767.1,2.00766062]
[1769714626355,1.53697594,2769.1,2767.0,10.03830309]
[1769714626557,0.756,2769.0,2767.5,0.90332867]
[1769714626727,0.1024,2768.9,2767.6,0.002]
[1769714627058,0.90291823,2768.8,2767.6,0.002]
[1769714628955,0.90285301,2769.0,2767.6,0.002]
[1769714629457,11.00267335,2769.0,2767.6,0.002]
[1769714631674,0.756,2768.9,2767.6,0.002]
[1769714632682,0.756,2768.9,2767.4,10.04030309]
[1769714632856,0.756,2768.9,2767.5,1.00403031]
[1769714633043,0.90269001,2769.5,2767.7,10.03830309]
[1769714633244,0.90269001,2769.5,2767.6,0.90330972]
[1769714633245,10.09982034,2769.4,2767.6,0.90330972]
[1769714633462,11.96743853,2769.3,2767.7,0.55205789]
[1769714633856,11.96743853,2769.3,2767.5,10.94162066]
[1769714635155,0.9027878,2769.2,2767.5,10.94162066]
[1769714637804,11.120911,2769.2,2767.6,0.756]
[1769714639679,0.001,2769.0,2767.7,0.90327708]
[1769714640499,0.001,2769.0,2767.7,11.80132715]
[1769714640653,0.001,2769.0,2767.8,1.61704485]
[1769714641677,0.001,2769.0,2767.9,11.80126189]
[1769714642072,0.001,2769.0,2768.0,0.756]
[1769714642473,0.001,2769.0,2767.9,0.90321182]
[1769714644160,0.001,2769.0,2767.6,3.61322442]
[1769714644467,0.001,2769.0,2767.7,1.61705842]
[1769714645983,10.2191232,2769.0,2767.7,1.61705842]
[1769714647292,0.001,2769.0,2767.8,0.90324445]
[1769714647511,0.001,2769.0,2767.8,11.80129452]
[1769714652242,0.001,2768.8,2767.8,11.80129452]
[1769714652445,0.001,2768.8,2768.0,0.90317919]
[1769714655526,0.001,2768.8,2768.1,0.756]
[1769714657637,0.90262483,2769.7,2768.2,10.89805007]
[1769714659842,3.61049933,2769.9,2768.3,0.90308131]
[1769714660043,0.72209987,2769.8,2768.4,12.07816321]
[1769714660668,8.33263803,2769.2,2767.5,10.89805007]
[1769714660953,10.3205232,2769.1,2767.6,0.90330177]
[1769714661120,1.03205232,2769.0,2767.7,2.08340772]
[1769714661463,10.2181232,2769.6,2768.2,0.90310728]
[1769714661621,0.756,2769.7,2768.2,11.79910735]
[1769714661821,0.756,2769.7,2768.2,11.69910735]
[1769714662323,0.90265742,2769.6,2768.2,11.69910735]
[1769714662524,1.86284691,2769.6,2768.3,12.42920638]
[1769714662731,0.90265742,2769.6,2768.5,10.89805007]
[1769714663128,0.72209987,2769.8,2768.5,10.89805007]
[1769714663333,3.60982164,2770.3,2768.5,10.89805007]
[1769714663654,10.2181232,2770.2,2768.5,10.89805007]
[1769714663855,3.60982164,2770.3,2768.7,10.89805007]
[1769714664359,0.001,2769.5,2768.8,0.90291823]
[1769714665626,0.90242933,2770.4,2768.8,10.65957214]
[1769714665822,0.53703802,2770.3,2769.0,9.75665391]
[1769714666023,0.90223393,2770.9,2769.0,9.75665391]
[1769714666253,3.60825088,2771.5,2769.2,9.75665391]
[1769714666422,3.60825088,2771.5,2769.4,9.75665391]
[1769714666626,1.46028886,2771.4,2769.4,9.75665391]
[1769714668625,0.9021037,2771.3,2769.6,9.75665391]
[1769714670862,0.9021037,2771.3,2769.8,9.75665391]
[1769714672241,0.9021037,2771.3,2769.9,0.756]
[1769714672562,0.59708074,2771.2,2770.0,1.05126539]
[1769714672971,0.90216881,2771.1,2770.1,0.90249449]
[1769714673291,0.90216881,2771.1,2770.0,1.9537681]
[1769714673880,0.90216881,2771.1,2770.0,1.05126539]
[1769714674179,0.51079248,2771.0,2769.7,0.90262127]
[1769714674342,0.51079248,2771.0,2769.7,0.90262453]
[1769714674549,0.51079248,2771.0,2769.9,0.90254801]
[1769714675079,0.90223393,2770.9,2769.9,9.34471889]
[1769714675277,0.90223393,2770.9,2768.7,3.61169506]
[1769714675278,0.90223393,2770.9,2769.3,9.34471889]
[1769714675476,0.50219621,2770.8,2769.5,0.90266456]
[1769714675775,0.50219621,2770.8,2769.6,0.90263656]
[1769714677276,0.50219621,2770.8,2769.5,3.61073598]
[1769714677277,0.90229905,2770.7,2769.5,3.61073598]
[1769714677860,0.90229905,2770.7,2769.5,0.90269001]
[1769714679076,0.90229905,2770.7,2769.5,10.2474089]
[1769714679263,0.90236419,2770.5,2769.5,11.63323427]
[1769714679455,0.90236419,2770.5,2769.5,10.2474089]
[1769714679655,0.90236419,2770.5,2769.5,0.9026856]
[1769714679876,0.90236419,2770.5,2769.4,0.90271862]
[1769714681458,0.90236419,2770.5,2769.3,0.9027552]
[1769714681791,9.88181748,2770.5,2769.1,0.90279426]
[1769714681960,9.4807723,2770.4,2769.1,0.90279426]
[1769714683161,9.4807723,2770.4,2769.2,0.90278197]
[1769714683361,9.4807723,2770.4,2769.2,0.90278505]
[1769714683561,0.90242933,2770.3,2769.0,12.95604546]
[1769714683789,1.94074298,2770.3,2769.0,14.7786824]
[1769714683953,1.94074298,2770.3,2769.0,11.16735583]
[1769714684990,10.92019627,2770.3,2768.9,0.756]
[1769714685295,10.92019627,2770.3,2768.7,0.90294799]
[1769714685468,10.92019627,2770.3,2768.8,9.34471889]
[1769714686479,10.92019627,2770.3,2768.7,0.756]
[1769714686679,1.57872326,2770.2,2768.8,9.34471889]
[1769714686883,1.94074298,2770.3,2768.8,9.34471889]
[1769714687590,1.94074298,2770.3,2768.9,1.65888562]
[1769714687890,1.94074298,2770.3,2768.9,11.00360451]
[1769714688293,1.94074298,2770.3,2769.2,0.002]
[1769714688591,10.92019627,2770.3,2768.9,0.90288562]
[1769714688770,1.57872326,2770.2,2769.0,0.002]
[1769714690395,0.001,2770.6,2769.3,9.34471889]
[1769714690558,2.61703691,2770.5,2769.3,9.34471889]
[1769714692590,3.51943084,2770.5,2769.4,0.90272261]
[1769714692796,3.51943084,2770.5,2769.5,9.7960802]
[1769714693091,0.90239393,2770.5,2769.5,9.7960802]
[1769714693289,0.90239393,2770.5,2769.6,0.756]
[1769714693496,0.90239393,2770.5,2769.6,10.10071889]
[1769714694972,0.001,2770.6,2769.7,0.90262483]
[1769714695296,2.61803691,2770.6,2769.7,11.30255174]
[1769714695897,2.61803691,2770.6,2769.7,10.39992691]
[1769714696104,11.32892793,2770.6,2769.5,0.45136131]
[1769714696291,11.32892793,2770.6,2769.4,0.756]
[1769714696487,8.71089102,2770.5,2769.0,0.90483357]
[1769714697171,0.90239676,2770.4,2769.0,0.90483357]
[1769714697368,8.71089102,2770.3,2769.1,0.52722937]
[1769714697596,8.71089102,2770.3,2769.0,0.002]
[1769714698216,2.61703691,2770.2,2769.0,8.64533028]
[1769714700314,0.001,2770.6,2769.1,9.54615069]
[1769714700477,2.61703691,2770.4,2769.1,9.54615069]
[1769714700683,0.001,2770.6,2769.3,8.64333028]
[1769714701005,0.001,2770.6,2769.4,8.64333028]
[1769714701505,0.001,2770.9,2769.5,8.64333028]
[1769714701705,0.001,2770.3,2769.6,0.756]
[1769714701905,0.001,2770.3,2769.7,8.64333028]
[1769714702209,0.90323897,2770.9,2769.9,0.90255965]
[1769714702210,0.001,2770.9,2769.9,0.90255965]
[1769714702409,0.001,2770.9,2769.9,9.54588993]
[1769714703931,3.60800458,2771.7,2770.0,8.64333028]
[1769714704085,3.70997302,2772.0,2770.2,8.64333028]
[1769714704086,3.60763375,2772.0,2770.2,8.64333028]
[1769714704286,3.60763375,2772.0,2770.3,0.90242933]
[1769714704618,3.60763375,2772.0,2770.4,9.39933028]
[1769714705325,0.001,2772.1,2770.4,9.39933028]
[1769714705825,0.001,2772.1,2770.5,8.64333028]
[1769714705986,0.001,2772.1,2770.7,8.64333028]
[1769714706305,0.90284354,2772.1,2770.7,8.64333028]
[1769714706510,0.001,2772.1,2770.8,10.30159677]
[1769714706823,0.001,2772.1,2770.9,1.39106627]
[1769714707125,0.001,2772.1,2770.9,10.03439655]
[1769714708520,0.001,2772.1,2771.1,8.64333028]
[1769714709093,3.60795844,2772.5,2771.1,8.64333028]
[1769714709094,0.001,2772.5,2771.1,8.64333028]
[1769714709312,0.001,2772.5,2771.0,0.90220137]
[1769714709313,0.001,2772.8,2771.3,8.64333028]
[1769714709517,0.001,2772.8,2771.2,0.2335703]